Workbook

Sheet Sheet1
A2: 705-711 MAIN STREET
A3: Income & Expense Proforma
A4: 2020
A6: Income
A8: Suite No. | B8: Tenant | C8: SF | D8: Mo. Rent | E8: Mo. Rent/SF | F8: Annual Rent | G8: Annual Rent/SF | H8: Lease Start Date | I8: Lease Expiration | K8: Comments
A9: 703 Main St. | B9: Lorena Lopez - Bar | C9: 1450 | D9: 3100 | E9: =D9/C9 -> 2.137931034 | F9: =D9*12 -> 37200 | G9: =F9/C9 -> 25.65517241 | H9: 2019-10-01 | I9: 2024-09-30 | K9: Full Service Gross
A10: 705 Main St. | B10: Available Office | C10: 1080 | D10: 2000 | E10: =D10/C10 -> 1.851851852 | F10: 24000 | G10: =F10/C10 -> 22.22222222 | K10: Full Service Gross
A11: 707 Main St. | B11: Alliance Entertainment | C11: 1210 | D11: 1857 | E11: =D11/C11 -> 1.534710744 | F11: =D11*12 -> 22284 | G11: =E11*12 -> 18.41652893 | H11: 2015-05-01 | I11: 2021-12-31 | K11: Full Service Gross
A12: 710 Dead Cat Alley | B12: Brad Parsons | C12: 1060 | D12: 1500 | E12: =D12/C12 -> 1.41509434 | F12: =D12*12 -> 18000 | G12: =E12*12 -> 16.98113208 | H12: 2018-08-01 | I12: 2021-07-31 | K12: Modified Gross - Tenant pays util. & janitorial
A13: 720-750 Dead Cat Alley | B13: Blue Note Brewery | C13: 5250 | D13: 4507.95 | E13: =D13/C13 -> 0.8586571429 | F13: =D13*12 -> 54095.4 | G13: =F13/C13 -> 10.30388571 | H13: 2016-05-01 | I13: 2025-01-31 | K13: Modified Gross - Tenant pays util. & janitorial
A14: 709 Main St. | B14: Subway | C14: 960 | D14: 1550 | E14: =D14/C14 -> 1.614583333 | F14: 18600 | G14: =F14/C14 -> 19.375 | H14: 2015-02-20 | I14: 2021-06-30 | K14: Modified Gross - Tenant pays util. & janitorial
A15: 711 Main St. | B15: Daily Democrat | C15: 3400 | D15: =C15*1.65 -> 5610 | E15: 1.65 | F15: 67320 | G15: 19.8 | H15: 2013-05-01 | I15: 2021-03-31 | K15: Full Service Gross
A16: Reimbursement | B16: Common Areas | C16: 1240 | D16: =(D23+D25+D26+D28+D29+D30) -> 1258.33 | E16: 1.014782258 | F16: 15099.96 | G16: 12.1773871 | K16: Reimbursements
A18: TOTALS | C18: =SUM(C9:C16) -> 15650 | D18: =SUM(D9:D16) -> 21383.28 | E18: =D18/C18 -> 1.36634377 | F18: =SUM(F9:F16) -> 256599.36 | G18: 16.39612524
A20: Expenses
A21: Property Taxes* | D21: =F21/12 -> 2291.666667 | E21: =D21/$C$18 -> 0.1464323749 | F21: 27500 | G21: =F21/$C$18 -> 1.757188498
A22: Insurance | D22: 350 | E22: =D22/$C$18 -> 0.02236421725 | F22: 3900 | G22: 0.249201278
A23: Landscaping | D23: 0 | E23: 0 | F23: =D23*12 -> 0 | G23: 0
A24: Utilities (Gas, Electric, etc.) | D24: 1500 | E24: 0.09584664537 | F24: 18600 | G24: 1.188498403
A25: Fire Alarm monitoring | D25: 125 | E25: 0.007987220447 | F25: 1500 | G25: 0.09584664537
A26: Janitorial | D26: 600 | E26: 0.03833865815 | F26: 7200 | G26: 0.4600638978
A27: Water, Sewer & Garbage | D27: 300 | E27: 0.01916932907 | F27: 3600 | G27: 0.2300319489
A28: Pest Control | D28: 75 | E28: 0.004792332268 | F28: 900 | G28: 0.05750798722
A29: Repairs & Maintenance | B29: HVAC, etc. | D29: 208.33 | E29: =D29/$C$18 -> 0.01331182109 | F29: 2499.96 | G29: =F29/$C$18 -> 0.159741853
A30: Accounting/Tax Prep. | D30: 250 | E30: =D30/$C$18 -> 0.01597444089 | F30: 3000 | G30: =F30/$C$18 -> 0.1916932907
A31: Management Fees | D31: =SUM(D9:D15)*0.04 -> 804.998 | E31: =D31/$C$18 -> 0.05143757188 | F31: =D31*12 -> 9659.976 | G31: =F31/C18 -> 0.6172508626
A33: TOTALS | D33: =SUM(D21:D31) -> 6504.994667 | E33: =SUM(E21:E31) -> 0.4156546113 | F33: =SUM(F21:F31) -> 78359.936 | G33: 5.007024665
A35: NET OPERATING INCOME | F35: =F18-F33 -> 178239.424
A37: Cap Rate | B37: =F35/F37 -> 0.06726016 | F37: 2650000 | G37: =F37/C18 -> 169.3290735
A39: * Taxes at Market Value
